bitfinex/quotes_ETHUSD_20251126
["timestamp","ask_amount","ask_price","bid_price","bid_amount"]
[1764195935270,6.00553944,3022.0,3021.9,0.001]
[1764195935451,6.49863944,3022.0,3021.9,0.001]
[1764195936962,6.90414344,3022.0,3021.9,0.001]
[1764195939274,7.79139523,3022.0,3021.9,0.001]
[1764195940076,6.90414344,3022.0,3021.9,0.001]
[1764195940464,6.41104344,3022.0,3021.9,0.001]
[1764195940659,6.20304344,3022.0,3021.9,0.001]
[1764195940865,6.41304344,3022.0,3021.9,0.001]
[1764195941487,5.94604344,3022.0,3021.9,0.4736]
[1764195941782,5.54053944,3022.0,3021.9,0.4736]
[1764195941980,5.5416526,3022.0,3021.9,0.4736]
[1764195942282,6.0086526,3022.0,3021.9,0.001]
[1764195946390,6.4141566,3022.0,3021.9,0.001]
[1764195946759,6.8730566,3022.0,3021.9,0.001]
[1764195947479,7.76040527,3022.0,3021.9,0.001]
[1764195948367,6.8730566,3022.0,3021.9,0.001]
[1764195950369,8.05072407,3022.0,3021.9,0.001]
[1764195955188,6.4141566,3022.0,3021.9,0.001]
[1764195956594,12.82881483,3022.0,3021.9,0.001]
[1764195958188,12.52109718,3022.0,3021.9,0.001]
[1764195958394,5.73796172,3022.0,3021.9,0.4615]
[1764195958692,6.83655135,3022.0,3021.9,0.4615]
[1764195959471,5.94796172,3022.0,3021.9,0.4615]
[1764195960073,5.73796172,3022.0,3021.9,0.4615]
[1764195960276,5.94796172,3022.0,3021.9,0.4615]
[1764195960573,2.04156642,3022.0,3021.9,0.4615]
[1764195960765,2.25156642,3022.0,3021.9,0.938]
[1764195960965,5.56063326,3022.0,3021.9,0.938]
[1764195961160,5.56179433,3022.0,3021.9,0.4615]
[1764195964796,1.15403955,3022.0,3021.9,0.938]
[1764195965004,1.36403955,3022.0,3021.9,0.938]
[1764195965394,0.6530892,3022.0,3021.9,0.938]
[1764195965799,1.36403955,3022.0,3021.9,0.938]
[1764195966601,0.6530892,3022.0,3021.9,0.938]
[1764195966906,1.36403955,3022.0,3021.9,0.938]
[1764195967410,1.15403955,3022.0,3021.9,0.938]
[1764195967598,0.52052277,3022.0,3021.9,0.938]
[1764195967798,0.52052277,3022.0,3021.9,1.36272295]
[1764195968200,0.52052277,3022.0,3021.9,4.67189929]
[1764195968514,0.52033027,3022.0,3021.9,4.67189929]
[1764195969212,0.212,3022.0,3021.9,4.67189929]
[1764195969410,0.212,3022.0,3021.9,1.36272295]
[1764195969578,0.212,3022.0,3021.9,4.24717634]
[1764195971705,0.212,3022.0,3021.9,0.4615]
[1764195972007,0.212,3022.0,3021.9,4.23637634]
[1764195972317,0.002,3022.0,3021.9,4.96197045]
[1764195972484,0.002,3022.1,3022.0,0.72559411]
[1764195972685,0.002,3022.1,3022.0,9.52624348]
[1764195973687,0.212,3022.4,3022.0,9.52624348]
[1764195973883,0.212,3022.4,3022.3,7.05015823]
[1764195974084,0.002,3022.5,3022.3,8.24145234]
[1764195974320,0.002,3022.8,3022.5,0.72559411]
[1764195974506,0.002,3022.8,3022.7,7.60655234]
[1764195975006,0.21,3023.2,3022.8,0.72559411]
[1764195975207,0.21,3023.2,3023.1,0.6582]
[1764195975415,0.214,3024.2,3023.5,0.4663]
[1764195975618,0.214,3024.2,3023.8,6.88095823]
[1764195975843,0.21,3024.7,3023.7,0.72559411]
[1764195975844,0.21,3024.7,3024.1,1.37949411]
[1764195975987,0.21,3024.7,3024.6,0.4663]
[1764195976426,0.21,3024.7,3024.6,4.23712231]
[1764195976717,0.002,3025.1,3024.7,0.72559411]
[1764195976929,0.002,3025.1,3025.0,0.4663]
[1764195977307,0.002,3025.1,3025.0,0.9309]
[1764195977505,0.002,3025.1,3025.0,1.65649411]
[1764195978197,0.002,3025.1,3025.0,4.96227923]
[1764195978397,0.002,3025.1,3025.0,5.78909727]
[1764195984105,0.002,3025.1,3025.0,4.96227923]
[1764195985727,0.002,3025.1,3025.0,4.49767923]
[1764195986320,0.002,3025.1,3022.3,0.1838]
[1764195986321,0.486,3025.1,3022.3,0.1838]
[1764195986521,0.002,3025.1,3023.5,8.77838885]
[1764195986828,0.99313906,3025.0,3023.6,1.34243889]
[1764195987013,0.99313906,3025.0,3023.7,0.4646]
[1764195987210,0.6759,3024.9,3023.7,0.4646]
[1764195987403,0.16690391,3024.8,3023.7,0.4646]
[1764195987605,0.65910391,3024.8,3023.7,0.4646]
[1764195988008,1.48533906,3024.7,3023.7,0.4646]
[1764195988207,0.21,3024.6,3023.7,0.4646]
[1764195988509,4.00846563,3024.6,3023.9,0.72559411]
[1764195988718,0.7022,3024.6,3023.9,0.72559411]
[1764195988904,0.21,3024.6,3023.9,1.19019411]
[1764195989327,0.7022,3024.6,3023.9,0.72559411]
[1764195989526,4.0084232,3024.6,3023.9,0.72559411]
[1764195989730,0.21,3024.6,3023.9,0.72559411]
[1764195990542,0.7022,3024.6,3024.0,3.3068783]
[1764195990746,4.0084324,3024.6,3024.0,3.3068783]
[1764195992344,0.99319167,3024.5,3024.0,3.3068783]
[1764195993329,0.99319167,3024.5,3024.0,7.0783566]
[1764195993715,0.99319167,3024.5,3024.0,3.7714783]
[1764195994321,0.99319167,3024.5,3024.0,7.0783566]
[1764195995541,0.99319167,3024.5,3024.1,0.4646]
[1764195997145,0.99319167,3024.5,3024.4,0.4663]
[1764195997844,0.99319167,3024.5,3024.4,3.77274094]
[1764195998245,0.99319167,3024.5,3024.4,0.4663]
[1764195998820,0.21,3024.6,3024.4,3.77274094]
[1764195999143,0.72559411,3024.7,3024.5,3.77259324]
[1764195999348,0.21,3024.6,3024.5,3.77259324]
[1764195999533,0.21,3024.6,3024.5,4.52525975]
[1764195999746,0.21,3024.6,3024.5,4.99155975]
[1764196000626,0.21,3024.6,3024.5,1.22066651]
[1764196000817,0.21,3024.6,3024.5,0.4663]
[1764196001024,0.21,3024.6,3024.5,3.77263162]
[1764196001446,0.21,3024.6,3024.5,4.23723162]
[1764196001746,0.21,3024.6,3024.5,3.77263162]
[1764196001945,0.21,3024.6,3024.5,4.94513884]
[1764196006547,0.21,3025.0,3024.5,8.25147046]
[1764196006747,0.30785315,3024.9,3024.5,8.27727046]
[1764196006963,0.30785315,3024.8,3024.6,0.4904]
[1764196007268,0.21,3025.0,3024.6,0.4904]
[1764196007469,0.30787947,3024.9,3024.7,3.306113]
[1764196007777,0.3611,3024.7,3024.6,3.30622173]
[1764196008067,0.002,3024.6,3024.5,4.0141919]
[1764196008447,0.002,3024.6,3024.5,4.4748919]
[1764196010164,0.002,3024.6,3024.5,4.9652919]
[1764196011546,0.002,3024.6,3024.5,5.69088601]
[1764196014638,0.002,3024.6,3024.5,5.20048601]
[1764196015157,0.31070726,3024.6,3024.5,5.20048601]
[1764196017266,0.77050726,3024.6,3024.5,4.03187879]
[1764196017474,0.31070726,3024.6,3024.5,4.49257879]
[1764196018348,0.31070726,3024.6,3024.5,4.98297879]
[1764196019666,0.31070726,3024.6,3024.5,4.49257879]
[1764196020569,0.31089295,3024.6,3024.5,4.49257879]
[1764196020771,0.31089295,3024.6,3024.5,5.32151988]
[1764196021153,0.31089295,3024.6,3024.5,4.49262573]
[1764196021754,0.31089295,3024.6,3024.5,4.98302573]
[1764196022068,0.002,3024.6,3024.5,4.98302573]
[1764196028778,0.002,3024.6,3024.5,5.38852973]
[1764196031877,0.002,3025.0,3024.5,5.38852973]
[1764196031878,0.002,3025.0,3024.6,1.13109811]
[1764196032086,0.002,3025.0,3024.9,0.4615]
[1764196032283,0.002,3025.0,3024.9,0.867004]
[1764196032588,0.002,3025.0,3024.9,8.44209932]
[1764196033488,0.002,3025.0,3024.9,11.74799372]
[1764196033691,0.002,3025.0,3024.9,13.27439272]
[1764196041569,1e-08,3025.1,3025.0,1.62589811]
[1764196041772,1e-08,3025.1,3025.0,2.10179811]
[1764196042407,1e-08,3025.1,3025.0,5.40758323]
[1764196042575,1e-08,3025.1,3025.0,7.40154065]
[1764196044073,1e-08,3025.1,3025.0,11.21154065]
[1764196055786,0.47710001,3025.1,3025.0,9.10974254]
[1764196056009,0.47710001,3025.1,3025.0,9.83533665]
[1764196056313,0.96540001,3025.1,3025.0,9.83533665]
[1764196056815,0.96540001,3025.1,3025.0,4.03137923]
[1764196060098,0.96540001,3025.1,3025.0,3.30578512]
[1764196060312,0.96540001,3025.1,3025.0,0.72559411]
[1764196060507,0.96540001,3025.1,3025.0,4.03137923]
[1764196062512,0.96540001,3025.1,3025.0,0.72559411]
[1764196062719,0.96540001,3025.1,3025.0,4.03137923]
[1764196070294,0.96540001,3025.1,3025.0,0.72559411]
[1764196070499,0.96540001,3025.1,3025.0,4.03137923]
[1764196076104,0.96540001,3025.1,3025.0,4.03237923]
[1764196081942,0.96540001,3025.1,3025.0,0.72659411]
[1764196082744,0.96540001,3025.1,3025.0,4.03237923]
[1764196083240,0.96540001,3025.1,3025.0,0.72659411]
[1764196083538,0.93380001,3025.1,3025.0,4.03237923]
[1764196084311,1e-08,3025.1,3025.0,5.22790601]
[1764196084547,1e-08,3025.1,3025.0,12.09173937]
[1764196086125,1e-08,3025.1,3025.0,12.30173937]
[1764196088422,1e-08,3025.1,3025.0,5.43790601]
[1764196088763,1e-08,3025.1,3025.0,5.90100601]
[1764196090545,0.47510001,3025.1,3025.0,4.76630601]
[1764196090747,0.95530001,3025.1,3025.0,4.76630601]
[1764196090920,0.47510001,3025.1,3025.0,4.76630601]
[1764196091247,0.47510001,3025.1,3025.0,5.22280601]
[1764196091248,1e-08,3025.1,3025.0,5.22280601]
[1764196091847,1e-08,3025.1,3025.0,4.76630601]
[1764196092249,1e-08,3025.1,3025.0,5.22280601]
[1764196093456,0.47510001,3025.1,3025.0,0.72659411]
[1764196093749,0.95530001,3025.1,3025.0,4.03237923]
[1764196099923,0.47510001,3025.1,3025.0,4.03237923]
[1764196100830,0.93190001,3025.1,3025.0,4.03237923]
[1764196102052,0.47510001,3025.1,3025.0,4.03237923]
[1764196102354,1e-08,3025.1,3025.0,4.03237923]
[1764196102523,0.47280001,3025.1,3025.0,4.03237923]
[1764196104246,0.92960001,3025.1,3025.0,4.03237923]
[1764196105138,1e-08,3025.1,3025.0,5.23520586]
[1764196105647,1e-08,3025.1,3025.0,5.71190586]
[1764196106026,1e-08,3025.1,3025.0,6.11740986]
[1764196111132,1e-08,3025.1,3025.0,5.08319498]
[1764196111528,1e-08,3025.1,3025.0,5.08419498]
[1764196112666,1e-08,3025.1,3025.0,7.43999854]
[1764196112962,1e-08,3025.1,3025.0,7.96705498]
[1764196113149,1e-08,3025.1,3025.0,5.80978909]
[1764196114340,1e-08,3025.1,3025.0,8.18341607]
[1764196114758,1e-08,3025.1,3025.0,5.80978909]
[1764196115150,1e-08,3025.5,3025.4,0.977204]
[1764196115460,1e-08,3025.5,3025.4,8.06103736]
[1764196115639,1e-08,3025.5,3025.4,8.78663147]
[1764196115840,1e-08,3025.5,3025.4,12.09197952]
[1764196118382,1e-08,3025.5,3025.4,11.61527952]
[1764196118542,1e-08,3025.5,3025.4,13.10735311]
[1764196121245,1e-08,3025.5,3025.4,13.00455311]
[1764196123673,1e-08,3025.5,3025.4,16.81455311]
[1764196127360,1e-08,3025.5,3025.4,17.29305311]
[1764196128749,1e-08,3025.5,3025.4,23.69118647]
[1764196129374,1e-08,3025.9,3025.8,0.884004]
[1764196129574,1e-08,3025.9,3025.8,22.20827592]
[1764196130560,1e-08,3025.9,3025.8,15.80115507]
[1764196143564,1e-08,3025.9,3025.8,15.32265507]
[1764196145004,0.66500001,3025.9,3025.8,7.8405052]
[1764196145163,1.13840001,3025.9,3025.8,3.30491109]
[1764196145483,1.13840001,3025.9,3025.8,4.0305052]
[1764196145987,1.13840001,3025.9,3025.8,4.0315052]
[1764196149187,1.13840001,3025.9,3025.8,3.30591109]
[1764196149560,1.13840001,3025.9,3025.8,4.0315052]
[1764196170011,2.34000345,3025.9,3025.8,0.72659411]
[1764196170175,2.5740038,3025.9,3025.8,4.0315052]
[1764196170970,2.88288134,3025.9,3025.8,0.001]
[1764196171494,6.18768321,3025.9,3025.8,0.001]
[1764196171698,12.57682908,3025.9,3025.8,0.001]
[1764196171866,15.88163095,3025.9,3025.4,0.001]
[1764196172073,0.3699,3025.5,3025.4,0.001]
[1764196172266,0.88777754,3025.5,3025.4,0.001]
[1764196172469,2.36348136,3025.5,3025.4,0.001]
[1764196175404,5.66872016,3025.5,3025.4,0.001]
[1764196175601,2.36348136,3025.5,3025.4,0.001]
[1764196175899,2.93034809,3025.5,3025.4,0.001]
[1764196181203,1.67158136,3025.5,3025.4,0.001]
[1764196181374,1.0618,3025.5,3025.4,0.001]
[1764196185386,1.0398,3025.5,3025.4,0.001]
[1764196186293,0.5789,3025.5,3025.4,0.001]
[1764196187282,1.0398,3025.5,3025.4,0.001]
[1764196188304,0.5789,3025.5,3025.4,0.001]
[1764196188695,1.0398,3025.5,3025.4,0.001]
[1764196189404,0.99270855,3025.7,3025.5,6.6104776]
[1764196189609,0.209,3025.6,3025.5,3.3052388]
[1764196189914,0.6846,3025.6,3025.5,3.3052388]
[1764196190313,1.1455,3025.6,3025.5,3.3052388]
[1764196190685,1.1455,3025.6,3025.4,6.61168748]
[1764196190891,0.8513,3025.5,3025.4,3.30633943]
[1764196191619,0.8513,3025.5,3025.4,0.001]
[1764196198127,1.1601879,3025.5,3025.4,0.001]
[1764196201417,0.3088879,3025.5,3025.4,0.001]
[1764196201619,0.002,3025.8,3025.4,7.3343115]
[1764196201825,0.4629,3025.8,3025.5,0.73343115]
[1764196202130,0.002,3025.8,3025.4,0.001]
[1764196202529,0.002,3025.8,3025.7,0.4583]
[1764196202703,0.31109147,3025.8,3025.7,0.4583]
[1764196203303,0.31109147,3025.8,3025.7,4.48891443]
[1764196204332,0.002,3025.8,3025.7,5.31616822]
[1764196206133,0.002,3025.8,3025.7,5.79466822]
[1764196207999,0.002,3025.8,3025.7,5.31616822]
[1764196208503,0.002,3025.8,3025.7,5.77666822]
[1764196209938,0.002,3025.8,3025.7,5.31616822]
[1764196211530,0.953,3025.8,3025.7,4.03061443]
[1764196211736,0.47,3025.8,3025.7,4.03061443]
[1764196212207,0.953,3025.8,3025.7,4.03061443]
[1764196213009,0.953,3025.8,3025.6,0.72559411]
[1764196213308,0.8538,3025.7,3025.6,0.72559411]
[1764196213723,0.8538,3025.7,3025.6,0.001]
[1764196213925,7.55880493,3025.7,3025.6,0.001]
[1764196214118,3.12131503,3025.7,3025.6,0.001]
[1764196214709,3.83203389,3025.7,3025.6,0.001]
[1764196215321,7.13705421,3025.7,3025.6,0.001]
[1764196216714,7.54255821,3025.7,3025.6,0.001]
[1764196229451,6.60363535,3025.7,3025.6,0.001]
[1764196229659,7.71709879,3025.7,3025.6,0.001]
[1764196230227,4.00657447,3025.7,3025.6,0.001]
[1764196230431,2.44481503,3025.7,3025.6,0.001]
[1764196230652,0.4408734,3025.7,3025.6,0.4795]
[1764196230826,0.34137997,3025.7,3025.6,0.4795]
[1764196231027,0.51749343,3025.7,3025.6,0.4795]
[1764196231430,0.51749343,3025.7,3025.6,3.78462956]
[1764196231629,0.51749343,3025.7,3025.6,0.4795]
[1764196232152,1.01426395,3025.7,3025.6,0.001]
[1764196232654,1.46584225,3025.7,3025.6,0.001]
[1764196232841,1.91714225,3025.7,3025.6,0.001]
[1764196233440,5.22216257,3025.7,3025.6,0.001]
[1764196234559,5.22216156,3025.7,3025.6,0.001]
[1764196235239,5.62766556,3025.7,3025.6,0.001]
[1764196237447,5.7600578,3025.7,3025.6,0.001]
[1764196240061,6.46947094,3025.7,3025.6,0.001]
[1764196240244,5.7600578,3025.7,3025.6,0.001]
[1764196240462,6.46948963,3025.7,3025.6,0.001]
[1764196241258,8.18363556,3025.7,3025.6,0.001]
[1764196241460,7.294872,3025.7,3025.6,0.001]
[1764196241659,8.47253947,3025.7,3025.6,0.001]
[1764196242166,1.13109811,3025.6,3025.4,0.001]
[1764196242371,9.37332025,3025.5,3025.4,0.001]
[1764196242571,20.9106781,3025.5,3025.4,0.001]
[1764196242770,20.9106781,3025.5,3025.2,0.001]
[1764196242771,4.71488637,3025.4,3025.2,0.001]
[1764196243069,10.4010954,3025.3,3025.2,0.001]
[1764196243268,10.8523954,3025.3,3025.2,0.001]
[1764196243473,11.43641504,3025.3,3025.2,0.001]
[1764196244292,21.86397796,3025.3,3025.2,0.001]
[1764196244448,1.23088637,3025.2,3025.1,0.001]
[1764196244784,3.07748114,3025.2,3025.1,0.001]
[1764196245090,4.16750286,3025.2,3025.1,0.001]
[1764196245447,5.94104021,3025.2,3025.1,0.001]
[1764196246157,12.33755171,3025.2,3025.1,0.001]
[1764196246460,15.64223073,3025.2,3025.1,0.001]
[1764196246654,13.86958093,3025.2,3025.1,0.001]
[1764196247241,7.47306943,3025.2,3025.1,0.001]
[1764196247441,9.24569314,3025.2,3025.1,0.001]
[1764196247751,15.64220464,3025.2,3025.1,0.001]
[1764196247941,21.98220464,3025.2,3025.1,0.001]
[1764196248148,15.58569314,3025.2,3025.1,0.001]
[1764196248850,0.50529226,3025.0,3024.3,0.001]
[1764196249174,8.7564284,3025.0,3024.4,0.001]
[1764196249372,9.93096023,3025.0,3024.4,0.001]
[1764196249575,9.53558932,3025.0,3024.4,0.001]
[1764196250564,9.54190057,3025.0,3024.4,0.001]
[1764196250768,10.63192229,3025.0,3024.4,0.001]
[1764196250967,14.07014875,3025.0,3024.4,0.001]
[1764196251279,7.667326,3025.0,3024.4,0.001]
[1764196251574,13.1843697,3025.0,3024.4,0.001]
[1764196252378,14.07014875,3025.0,3024.4,0.001]
[1764196252681,14.16993701,3025.0,3024.4,0.001]
[1764196252883,13.28415796,3025.0,3024.4,0.001]
[1764196253451,13.1843697,3025.0,3024.4,0.001]
[1764196255483,14.16993701,3025.0,3024.4,0.001]
[1764196256791,14.07014875,3025.0,3024.4,0.001]
[1764196256996,14.16993701,3025.0,3024.4,0.001]
[1764196257155,1.13109811,3024.9,3024.4,0.001]
[1764196257499,4.04355944,3024.9,3024.4,0.001]
[1764196258385,7.34945384,3024.9,3024.4,0.001]
[1764196259360,7.24966558,3024.9,3024.4,0.001]
[1764196260294,7.04066558,3024.9,3024.4,0.001]
[1764196260591,7.24966558,3024.9,3024.4,0.001]
[1764196260763,7.34945384,3024.9,3024.4,0.001]
[1764196260964,7.24966558,3024.9,3024.4,0.001]
[1764196261292,7.38029184,3024.9,3024.4,0.001]
[1764196261856,7.4800801,3024.9,3024.4,0.001]
[1764196262480,6.03609184,3024.9,3024.4,0.4529]
[1764196262681,6.24509184,3024.9,3024.4,0.4529]
[1764196263073,7.39819184,3024.9,3024.4,0.001]
[1764196263677,6.93309184,3024.9,3024.4,0.001]
[1764196264364,5.79351354,3024.9,3024.8,0.4795]
[1764196264784,5.79351354,3024.9,3024.8,0.001]
[1764196266869,5.06791943,3024.9,3024.8,0.4795]
[1764196267065,1.76202503,3024.9,3024.8,0.4795]
[1764196267272,5.06791943,3024.9,3024.8,0.4795]
[1764196267794,1.35652103,3024.9,3024.8,0.4795]
[1764196267978,4.22786134,3024.9,3024.8,0.4795]
[1764196268168,4.93547722,3024.9,3024.8,0.4795]
[1764196268970,5.39537722,3024.9,3024.8,0.001]
[1764196270087,4.93547722,3024.9,3024.8,0.001]
[1764196271501,5.81999707,3024.9,3024.8,0.001]
[1764196272091,6.27989707,3024.9,3024.8,0.001]
[1764196274189,6.47949707,3024.9,3024.8,0.001]
[1764196274395,9.35317162,3024.9,3024.6,0.001]
[1764196274596,2.74912475,3024.8,3024.6,0.001]
[1764196275196,2.88156345,3024.8,3024.6,0.001]
[1764196275681,2.42926345,3024.8,3024.6,0.001]
[1764196275878,2.88156345,3024.8,3024.6,0.001]
[1764196276095,1.99301752,3024.8,3024.6,0.001]
[1764196276431,5.29902122,3024.8,3024.6,0.001]
[1764196276771,5.70452522,3024.8,3024.6,0.001]
[1764196277104,0.72559411,3024.7,3024.6,0.001]
[1764196277303,9.45329968,3024.7,3024.6,0.001]
[1764196277997,9.55308794,3024.7,3024.6,0.001]
[1764196278702,14.63182465,3024.7,3024.6,0.001]
[1764196280386,12.85920094,3024.7,3024.6,0.001]
[1764196281011,12.30711268,3024.7,3024.6,0.001]
[1764196281184,13.94367043,3024.7,3024.6,0.001]
[1764196281501,13.94367043,3024.7,3024.5,0.001]
[1764196281502,0.50529226,3024.6,3024.5,0.001]
[1764196281703,2.37377108,3024.6,3024.5,0.001]
[1764196282394,6.58336519,3024.6,3024.5,0.001]
[1764196282993,9.8895875,3024.6,3024.5,0.001]
[1764196283297,0.405504,3023.9,3023.1,0.1919]
[1764196283603,1.006704,3023.6,3023.1,0.1919]
[1764196283805,2.26624376,3023.6,3023.1,0.1919]
[1764196284101,3.42615964,3023.6,3023.1,0.1919]
[1764196284307,2.77425964,3023.6,3023.1,0.1919]
[1764196285278,6.08157542,3023.6,3023.1,0.1919]
[1764196285479,7.25946953,3023.6,3022.7,0.0959]
[1764196285678,7.25946953,3023.6,3022.3,0.6474]
[1764196285679,7.35925779,3023.6,3022.4,0.4636]
[1764196285883,0.405504,3023.2,3022.4,0.4636]
[1764196286188,0.51646294,3023.1,3022.4,0.4636]
[1764196286395,0.405504,3022.9,3022.4,0.4636]
[1764196286706,0.405504,3022.7,3022.4,0.4636]
[1764196286906,0.51646294,3022.6,3022.4,0.4636]
[1764196287099,0.30746294,3022.5,3022.4,0.4636]
[1764196287277,0.30716476,3022.5,3022.4,0.4785]
[1764196287481,0.30716476,3022.5,3022.4,0.9421]
[1764196288288,3.92296586,3022.6,3022.4,0.9421]
[1764196288493,3.92296586,3022.6,3022.5,0.4785]
[1764196288689,4.22994205,3022.6,3022.5,0.4785]
[1764196290107,4.22994205,3022.6,3022.5,0.9421]
[1764196291216,3.92296586,3022.6,3022.5,0.9421]
[1764196291784,4.229597,3022.6,3022.5,0.9421]
[1764196291986,3.92296586,3022.6,3022.5,0.9421]
[1764196292516,0.614504,3022.6,3022.5,0.9421]
[1764196293090,1.83811025,3023.6,3022.5,4.25059125]
[1764196293091,3.30765253,3023.3,3022.5,4.25059125]
[1764196293392,0.405504,3023.1,3022.6,0.4636]
[1764196293593,0.209,3023.2,3022.6,0.4636]
[1764196293822,0.209,3023.2,3022.7,3.30830052]
[1764196293992,0.209,3023.2,3023.1,0.5744]
[1764196294183,0.51555095,3023.2,3023.1,0.5744]
[1764196294387,3.82330432,3023.2,3023.1,0.5744]
[1764196294593,0.209,3023.2,3023.1,1.038]
[1764196294788,3.82328447,3023.2,3023.1,1.038]
[1764196295596,0.5155311,3023.2,3023.1,1.038]
[1764196295788,3.51675337,3023.2,3023.1,1.038]
[1764196295990,0.51554874,3023.2,3023.1,1.038]
[1764196296198,0.209,3023.2,3023.1,1.038]
[1764196296693,3.51675337,3023.2,3023.1,1.038]
[1764196296884,0.209,3023.2,3023.1,1.038]
[1764196297288,0.51559823,3023.2,3023.1,1.038]
[1764196297519,3.8233516,3023.2,3023.1,1.038]
[1764196297688,0.51559823,3023.2,3023.1,1.038]
[1764196297888,3.8233516,3023.2,3023.1,1.038]
[1764196298212,3.8233516,3023.2,3023.1,0.4785]
[1764196298412,4.63582158,3023.2,3023.1,0.4785]
[1764196298628,0.405504,3023.1,3022.3,0.1838]
[1764196298803,0.405504,3023.1,3022.3,0.6474]
[1764196298804,0.405504,3022.8,3022.3,0.6474]
[1764196298994,0.209,3022.7,3022.3,0.6474]
[1764196299191,0.209,3022.7,3022.4,0.4636]
[1764196299518,0.209,3022.7,3022.6,0.4785]
[1764196300221,0.209,3022.7,3022.6,0.9421]
[1764196301813,0.209,3022.7,3022.6,4.25050997]
[1764196302607,0.209,3022.7,3022.6,0.9421]
[1764196303194,0.209,3022.7,3022.6,0.4785]
[1764196303908,0.209,3022.7,3022.6,0.9421]
[1764196304226,0.51590598,3022.7,3022.6,0.9421]
[1764196304819,0.209,3022.7,3022.6,0.9511]
[1764196305019,0.209,3022.7,3022.6,4.25950997]
[1764196305318,0.209,3022.7,3022.6,5.0163122]
[1764196309216,0.51653733,3022.7,3022.6,5.0163122]
[1764196312000,0.5166612,3022.7,3022.6,5.0163122]
[1764196315423,0.5166612,3022.7,3022.6,4.25950997]
[1764196315801,0.5166612,3022.7,3022.6,0.4785]
[1764196316035,0.5166612,3022.7,3022.6,3.78690997]
[1764196316329,0.5166612,3022.7,3022.6,4.25950997]
[1764196317824,0.5166612,3022.7,3022.6,0.9511]
[1764196318130,0.5166612,3022.7,3022.6,4.25950997]
[1764196319346,0.5166612,3022.7,3022.6,5.01630781]
[1764196319555,0.209,3022.7,3022.6,5.01630781]
[1764196321006,0.209,3022.7,3022.6,4.54370781]
[1764196321205,0.209,3022.7,3022.6,5.01630781]
[1764196321402,0.70967676,3023.3,3022.6,12.14935296]
[1764196321653,0.209,3023.4,3023.2,0.5698]
[1764196321848,0.30803885,3023.3,3023.2,0.0959]
[1764196322321,0.30803885,3023.3,3023.2,0.5698]
[1764196322519,0.30803885,3023.3,3023.2,1.0424]
[1764196322728,0.30803885,3023.3,3023.2,5.09513847]
[1764196324429,0.30803885,3023.3,3023.2,1.7873851]
[1764196324609,0.30803885,3023.3,3023.2,1.0424]
[1764196324816,0.30803885,3023.3,3023.2,4.35015337]
[1764196325021,0.30803885,3023.3,3023.2,3.87755337]
[1764196325623,0.30803885,3023.3,3023.2,4.35015337]
[1764196326457,0.30803885,3023.3,3023.2,0.4739]
[1764196326608,0.30803885,3023.3,3022.8,6.88005104]
[1764196326609,0.30803885,3023.3,3022.8,1.19819411]
[1764196326808,0.209,3023.4,3023.2,0.4739]
[1764196327055,0.209,3023.4,3023.3,0.4672]
[1764196327212,0.51647584,3023.4,3023.3,0.4672]
[1764196327717,0.46647584,3023.4,3023.3,0.4672]
[1764196327918,0.46625982,3023.4,3023.3,0.4672]
[1764196330554,0.46625982,3023.4,3023.3,4.23124396]
[1764196330723,0.46625982,3023.4,3023.3,3.77484396]
[1764196330724,0.46616028,3023.4,3023.3,3.77484396]
[1764196331238,0.46616028,3023.4,3023.3,4.23124396]
[1764196331737,0.46616028,3023.4,3023.3,3.77484396]
[1764196332048,0.46616028,3023.4,3023.2,3.40364019]
[1764196332250,0.159,3023.4,3023.3,0.4672]
[1764196332449,0.46613216,3023.4,3023.3,0.4672]
[1764196333047,0.159,3023.4,3023.3,11.40220278]
[1764196333279,0.159,3023.4,3023.3,4.99475174]
[1764196334721,0.159,3023.4,3023.3,12.12779689]
[1764196335354,0.002,3023.5,3023.3,15.43544085]
[1764196335526,0.002,3023.5,3023.4,2.8139081]
[1764196337133,0.002,3023.5,3023.4,6.12144266]
[1764196337929,0.002,3023.9,3023.5,0.405504]
[1764196338127,0.002,3023.9,3023.8,1.20409411]
[1764196338354,0.002,3023.9,3023.8,1.96524863]
[1764196338657,0.002,3023.9,3023.8,2.41674863]
[1764196339053,0.002,3023.9,3023.8,5.72384566]
[1764196339226,0.002,3023.9,3023.8,12.1312967]
[1764196339427,0.002,3023.9,3023.8,12.3402967]
[1764196340434,0.002,3023.9,3023.8,5.93284566]
[1764196341361,0.002,3023.9,3023.8,5.72384566]
[1764196341562,0.002,3023.9,3023.8,5.93284566]
[1764196342938,0.002,3023.9,3023.8,12.3402967]
[1764196345558,0.002,3023.9,3023.8,12.1312967]
[1764196353172,0.002,3023.9,3023.8,12.3402967]
[1764196353968,0.002,3023.9,3023.8,11.8887967]
[1764196354165,0.002,3023.9,3023.8,12.3402967]
[1764196356754,0.002,3023.9,3023.8,12.1312967]
[1764196356955,0.002,3023.9,3023.8,12.3402967]
[1764196367849,0.002,3023.9,3023.8,11.8887967]
[1764196371767,0.002,3023.9,3023.8,11.4102967]
[1764196373153,0.002,3023.9,3023.8,4.79384566]
[1764196373154,0.4979,3023.9,3023.8,4.79384566]
[1764196373359,0.982,3023.9,3023.8,4.79384566]
[1764196374958,0.4979,3023.9,3023.8,4.79384566]
[1764196375992,1.1663,3023.9,3023.8,4.03269114]
[1764196385987,0.4979,3023.9,3023.8,4.03269114]
[1764196386287,1.1663,3023.9,3023.8,4.03269114]
[1764196393897,2.36743599,3026.2,3024.9,3.487]
[1764196394105,0.30800199,3026.1,3026.0,6.40100116]
[1764196394264,0.002,3026.2,3026.1,0.72559411]
[1764196394669,0.4665,3026.8,3026.1,4.74116939]
[1764196394869,0.4665,3026.8,3026.4,2.36996728]